bitfinex-derivatives/quotes_ETHF0:USTF0_20241104
["timestamp","ask_amount","ask_price","bid_price","bid_amount"]
[1730714237457,0.40728,2457.1,2457.0,1.2834]
[1730714238852,1.4247396,2457.1,2457.0,1.2834]
[1730714240266,1.4247396,2457.1,2457.0,1.6907]
[1730714241565,1.4247396,2457.1,2457.0,1.2834]
[1730714243168,1.4247396,2457.1,2457.0,1.6907]
[1730714245066,1.4247396,2457.1,2457.0,1.2834]
[1730714245269,1.4247396,2457.1,2457.0,0.6515]
[1730714246764,1.4247396,2457.1,2457.0,1.0588]
[1730714246969,1.4247396,2457.1,2457.0,0.6515]
[1730714248574,1.4247396,2457.1,2457.0,1.0588]
[1730714248768,1.4247396,2457.1,2457.0,0.6515]
[1730714250465,2.4421992,2457.1,2457.0,0.6515]
[1730714250667,2.4421992,2457.1,2457.0,1.0588]
[1730714250971,2.4421992,2457.1,2457.0,1.63928128]
[1730714251568,2.0349192,2457.1,2457.0,1.63928128]
[1730714252470,2.4421992,2457.1,2457.0,1.63928128]
[1730714256680,2.4421992,2457.1,2457.0,1.0588]
[1730714256875,2.4421992,2457.1,2457.0,1.6395279]
[1730714257873,2.4421992,2457.1,2457.0,2.7048606]
[1730714258067,2.4421992,2457.1,2457.0,3.63410238]
[1730714258980,2.4421992,2457.1,2457.0,3.63411707]
[1730714259978,2.4421992,2457.1,2457.0,3.05338917]
[1730714260180,2.4421992,2457.1,2457.0,2.56881334]
[1730714260378,2.4421992,2457.1,2457.0,2.70490706]
[1730714260680,2.4421992,2457.1,2457.0,3.63409935]
[1730714262075,2.0349192,2457.1,2457.0,3.63409935]
[1730714262472,2.0349192,2457.1,2457.0,9.74532289]
[1730714262778,2.0349192,2457.1,2457.0,11.43815833]
[1730714263570,2.0349192,2457.1,2457.0,8.76681978]
[1730714263783,2.0349192,2457.1,2457.0,7.56614549]
[1730714263979,2.0349192,2457.1,2457.0,11.43747081]
[1730714264275,2.0349192,2457.1,2457.0,9.30787442]
[1730714264580,2.0349192,2457.1,2457.0,11.43747081]
[1730714264881,2.0349192,2457.1,2457.0,9.30787442]
[1730714265781,2.0349192,2457.1,2457.0,10.90589854]
[1730714266777,2.0349192,2457.1,2457.0,9.30787442]
[1730714267278,2.0349192,2457.1,2457.0,8.23513349]
[1730714267577,2.0349192,2457.1,2457.0,6.63722339]
[1730714267780,2.0349192,2457.1,2457.0,12.5150118]
[1730714267978,2.0349192,2457.1,2457.0,14.64460819]
[1730714268376,2.0349192,2457.1,2457.0,17.66070909]
[1730714268377,0.45694168,2457.1,2457.0,17.66070909]
[1730714268578,4.5646,2457.8,2457.5,0.40722]
[1730714268773,1.07908,2457.7,2457.6,0.58043385]
[1730714270086,0.6719,2457.7,2457.4,1.47244852]
[1730714270383,1.0791,2457.7,2457.5,2.05284371]
[1730714270689,1.0791,2457.7,2457.6,0.58041519]
[1730714270879,1.0791,2457.7,2457.5,0.40721]
[1730714271081,0.40721,2457.6,2457.5,0.40722]
[1730714271281,0.40721,2457.6,2457.5,0.98765613]
[1730714271681,0.40721,2457.6,2457.5,1.66085613]
[1730714272189,0.40721,2457.6,2457.5,1.25363613]
[1730714273776,0.40721,2457.6,2457.5,1.66085613]
[1730714273976,0.40721,2457.6,2457.5,0.58043613]
[1730714274496,0.40721,2457.6,2457.3,5.41551852]
[1730714274497,0.40723,2457.4,2457.3,5.41551852]
[1730714274698,0.40723,2457.4,2457.3,5.99610284]
[1730714274896,0.40723,2457.4,2457.3,4.93088432]
[1730714275299,0.40723,2457.4,2457.3,6.92504697]
[1730714275899,0.40723,2457.4,2457.3,5.85982845]
[1730714276102,0.40723,2457.4,2457.3,4.3503]
[1730714276401,0.40723,2457.4,2457.3,5.85988178]
[1730714276600,1.68988,2457.7,2457.3,6.92543212]
[1730714276799,0.6719,2457.7,2457.4,2.57509065]
[1730714277001,0.40721,2457.6,2457.5,0.58059179]
[1730714278107,0.40721,2457.6,2457.5,0.58060648]
[1730714281106,0.40721,2457.6,2457.5,0.58069601]
[1730714281706,0.40721,2457.6,2457.5,0.98791601]
[1730714281913,0.40721,2457.6,2457.5,0.58069601]
[1730714283605,0.40721,2457.6,2457.5,1.91715873]
[1730714284002,0.40721,2457.6,2457.5,0.40722]
[1730714284211,0.40721,2457.6,2457.5,1.91723597]
[1730714285110,0.40721,2457.6,2457.5,0.98799537]
[1730714285407,0.40721,2457.6,2457.5,2.05354571]
[1730714287609,0.40721,2457.6,2457.5,1.47277034]
[1730714287912,0.40721,2457.6,2457.5,2.05348699]
[1730714288206,0.40721,2457.6,2457.5,2.05348691]
[1730714289214,0.40721,2457.6,2457.5,1.64626691]
[1730714289605,0.40721,2457.6,2457.5,2.05348691]
[1730714293414,0.40721,2457.6,2457.5,2.98279888]
[1730714293915,0.40721,2457.6,2457.5,2.57557888]
[1730714294805,0.40721,2457.6,2457.5,1.06555034]
[1730714295008,0.40721,2457.6,2457.5,2.57579585]
[1730714295811,0.40721,2457.6,2457.5,2.98301585]
[1730714296710,0.40721,2457.6,2457.5,4.48830692]
[1730714298407,0.40721,2457.6,2457.5,3.90665658]
[1730714298608,1.07909,2457.7,2457.5,5.50498209]
[1730714298808,1.07909,2457.7,2457.6,2.57725417]
[1730714299012,1.07909,2457.7,2457.6,1.9697403]
[1730714299409,1.07909,2457.7,2457.6,3.03625417]
[1730714300423,1.07909,2457.7,2457.6,3.44345417]
[1730714302014,1.07909,2457.7,2457.6,3.44398148]
[1730714303314,1.01712844,2457.9,2457.6,10.30653507]
[1730714303617,1.01712844,2457.9,2457.8,6.91387229]
[1730714303618,0.40616041,2457.9,2457.8,6.91387229]
[1730714303919,0.40616041,2457.9,2457.8,18.17591675]
[1730714304118,0.40616041,2457.9,2457.8,17.54442389]
[1730714304314,3.2078,2458.2,2457.8,17.54339733]
[1730714304510,3.2078,2458.2,2458.1,2.0069777]
[1730714304719,3.2078,2458.2,2458.1,3.5132742]
[1730714305815,3.2078,2458.2,2458.1,6.18684135]
[1730714306018,0.40709,2458.3,2458.1,5.77643638]
[1730714306224,0.40709,2458.3,2458.2,3.46480743]
[1730714306616,0.40709,2458.3,2458.2,3.05770743]
[1730714307617,0.40709,2458.3,2458.2,3.52120743]
[1730714308236,0.40709,2458.3,2458.2,3.92830743]
[1730714308529,3.2078,2458.4,2458.3,0.40709]
[1730714308721,5.17954642,2458.5,2458.4,0.40706]
[1730714308722,0.40706,2458.5,2458.4,0.40706]
[1730714309023,0.40706,2458.5,2458.4,2.57692347]
[1730714309323,0.40706,2458.5,2458.4,2.56876383]
[1730714309521,0.40706,2458.5,2458.4,2.57645344]
[1730714309727,0.40706,2458.5,2458.4,2.98293312]
[1730714310226,0.88925,2458.6,2458.4,2.98293312]
[1730714310416,0.88924,2458.6,2458.5,0.58053936]
[1730714310613,0.88924,2458.6,2458.5,1.07204994]
[1730714311721,0.4822,2458.6,2458.5,1.47909994]
[1730714312025,0.9814,2458.7,2458.6,0.40704]
[1730714312026,0.5012,2458.7,2458.6,0.40704]
[1730714312219,2.32292228,2458.8,2458.6,0.98738994]
[1730714312418,2.32292228,2458.8,2458.7,0.4809]
[1730714321026,1.91591228,2458.8,2458.5,0.4917]
[1730714321234,0.40704,2458.6,2458.5,0.4917]
[1730714321733,0.40704,2458.6,2458.3,1.36557]
[1730714321734,0.40707,2458.5,2458.3,1.36557]
[1730714321924,0.4576,2458.4,2458.3,1.82267]
[1730714322123,0.4576,2458.4,2458.3,2.39952301]
[1730714322527,0.4576,2458.4,2458.3,1.82267]
[1730714322728,0.4576,2458.4,2458.3,2.39950048]
[1730714323327,0.4684,2458.5,2458.4,0.40707]
[1730714323534,0.40704,2458.6,2458.3,1.4156]
[1730714323734,0.40704,2458.6,2458.4,0.40706]
[1730714325932,0.926,2458.7,2458.3,1.4156]
[1730714326129,0.40704,2458.6,2458.5,0.40705]
[1730714326331,0.40704,2458.6,2458.3,1.4156]
[1730714326332,1.33302,2458.7,2458.3,2.43331]
[1730714326532,0.926,2458.7,2458.3,2.43331]
[1730714326837,1.33303,2458.7,2458.5,0.40704]
[1730714327035,1.33303,2458.7,2458.6,0.40704]
[1730714327836,1.91751228,2458.8,2458.6,0.40704]
[1730714327837,1.46351228,2458.8,2458.7,0.40702]
[1730714328834,0.96351228,2458.8,2458.7,0.40702]
[1730714329134,0.46351228,2458.8,2458.7,0.89492]
[1730714329527,1.228e-05,2458.8,2458.7,0.89492]
[1730714332837,1.228e-05,2458.8,2458.7,1.38872]
[1730714333427,1.228e-05,2458.8,2458.7,0.89492]
[1730714333629,0.48971228,2458.8,2458.7,0.89492]
[1730714334138,0.34331228,2458.8,2458.7,0.4879]
[1730714334332,0.26061228,2458.8,2458.7,0.4879]
[1730714334528,0.26061228,2458.8,2458.7,0.89492]
[1730714334732,1.228e-05,2458.8,2458.7,0.89492]
[1730714334933,0.40702,2458.7,2458.6,3.6615]
[1730714335239,0.23891228,2458.9,2458.6,3.61483]
[1730714335636,0.40702,2458.8,2458.6,3.61483]
[1730714337527,1.42377614,2458.8,2458.6,3.61483]
[1730714339144,1.01675614,2458.8,2458.6,3.61483]
[1730714339344,1.42376614,2458.8,2458.6,3.61483]
[1730714339841,1.42376614,2458.8,2458.6,0.40703]
[1730714340635,1.01675614,2458.8,2458.5,3.6691]
[1730714340846,0.40702,2458.7,2458.5,0.86835]
[1730714341345,1.01675614,2458.8,2458.5,0.86835]
[1730714341544,0.40702,2458.7,2458.5,0.86835]
[1730714342141,1.42376614,2458.8,2458.6,0.40703]
[1730714342737,2.44052228,2458.8,2458.6,0.40703]
[1730714343350,2.44052228,2458.8,2458.7,0.57727556]
[1730714343843,2.44052228,2458.8,2458.6,0.40703]
[1730714344243,2.03351228,2458.8,2458.5,1.52776078]
[1730714344447,2.03351228,2458.8,2458.6,2.05076773]
[1730714344647,2.03351228,2458.8,2458.7,0.98430695]
[1730714345347,2.44051228,2458.8,2458.7,0.57728695]
[1730714345645,2.03351228,2458.8,2458.7,0.57728695]
[1730714346151,2.44051228,2458.8,2458.7,0.57728695]
[1730714347050,2.38471228,2458.8,2458.7,0.57728695]
[1730714347443,2.32891228,2458.8,2458.7,2.56623175]
[1730714347749,1.92191228,2458.8,2458.7,2.97325175]
[1730714348453,1.92191228,2458.8,2458.7,5.00693789]
[1730714349252,1.92191228,2458.8,2458.7,9.37157506]
[1730714349448,1.92191228,2458.8,2458.7,9.90356889]
[1730714349751,1.92191228,2458.8,2458.7,7.7755936]
[1730714350250,1.92191228,2458.8,2458.7,9.90356889]
[1730714351151,1.92191228,2458.8,2458.7,12.90906579]
[1730714351345,1.92191228,2458.8,2458.7,12.90958427]
[1730714351540,1.92191228,2458.8,2458.7,9.90356889]
[1730714352043,1.92191228,2458.8,2458.7,9.90488542]
[1730714352448,1.92191228,2458.8,2458.7,12.91145591]
[1730714353545,1.92191228,2458.8,2458.7,9.70365591]
[1730714353946,1.92191228,2458.8,2458.7,12.91145591]
[1730714354451,1.92191228,2458.8,2458.7,7.57568062]
[1730714354756,1.92191228,2458.8,2458.7,10.78348062]
[1730714354960,1.92191228,2458.8,2458.7,12.91759559]
[1730714355159,1.92191228,2458.8,2458.7,10.78348062]
[1730714355553,1.92191228,2458.8,2458.7,10.78390086]
[1730714356250,1.92191228,2458.8,2458.7,11.41901267]
[1730714356749,1.92191228,2458.8,2458.7,8.21121267]
[1730714357147,1.92191228,2458.8,2458.7,11.41901267]
[1730714357965,1.92191228,2458.8,2458.7,14.07898178]
[1730714358460,1.92191228,2458.8,2458.7,10.87118178]
[1730714358652,1.92191228,2458.8,2458.7,14.079621]
[1730714358852,1.92191228,2458.8,2458.7,10.78436845]
[1730714359153,1.92191228,2458.8,2458.7,11.41965915]
[1730714359354,1.92191228,2458.8,2458.7,10.87182826]
[1730714359552,1.92191228,2458.8,2458.7,11.41965915]
[1730714359951,1.92191228,2458.8,2458.7,8.21185915]
[1730714360161,1.92191228,2458.8,2458.7,10.78442496]
[1730714360361,1.92191228,2458.8,2458.7,11.41965915]
[1730714360552,1.92191228,2458.8,2458.7,10.78442496]
[1730714360953,1.92191228,2458.8,2458.7,14.07962826]
[1730714361255,1.92191228,2458.8,2458.7,11.41965915]
[1730714361456,1.92191228,2458.8,2458.7,9.57004892]
[1730714361657,1.92191228,2458.8,2458.7,11.42292483]
[1730714361958,1.92191228,2458.8,2458.7,7.57989064]
[1730714362157,1.92191228,2458.8,2458.7,10.78769064]
[1730714362357,1.92191228,2458.8,2458.7,8.21512483]
[1730714362560,1.92191228,2458.8,2458.7,11.42292483]
[1730714362759,1.92191228,2458.8,2458.7,11.40995934]
[1730714362955,1.92191228,2458.8,2458.7,10.77469474]
[1730714363260,1.92191228,2458.8,2458.7,14.06992845]
[1730714363662,1.31119124,2458.8,2458.7,10.86212845]
[1730714364064,1.31119124,2458.8,2458.7,14.06992845]
[1730714365263,1.31119124,2458.8,2458.7,10.86212845]
[1730714365463,1.31119124,2458.8,2458.7,14.06992845]
[1730714366357,1.31119124,2458.8,2458.7,10.85475753]
[1730714366759,1.31119124,2458.8,2458.7,14.06280937]
[1730714367263,1.31119124,2458.8,2458.7,14.06276845]
[1730714368264,1.31119124,2458.8,2458.7,15.52862478]
[1730714368861,1.31119124,2458.8,2458.7,15.12160478]
[1730714369258,1.31119124,2458.8,2458.7,15.52862478]
[1730714369459,1.31119124,2458.8,2458.7,12.32082478]
[1730714369757,1.31119124,2458.8,2458.7,15.52862478]
[1730714370156,1.31119124,2458.8,2458.7,15.52958248]
[1730714371057,1.31119124,2458.8,2458.7,15.53134937]
[1730714371462,1.31119124,2458.8,2458.7,12.32373091]
[1730714371665,1.31119124,2458.8,2458.7,14.89585856]
[1730714372081,2.28729124,2458.8,2458.7,14.89585856]
[1730714372369,2.28729124,2458.8,2458.7,14.48883856]
[1730714372562,2.69429124,2458.8,2458.7,15.12465884]
[1730714373567,2.69429124,2458.8,2458.7,11.84086643]
[1730714373864,2.69429124,2458.8,2458.7,15.10537138]
[1730714374663,2.69429124,2458.8,2458.7,11.89757138]
[1730714374867,2.69429124,2458.8,2458.7,15.10537138]
[1730714375362,2.69429124,2458.8,2458.7,11.89757138]
[1730714375670,2.69429124,2458.8,2458.7,8.60169583]
[1730714375868,2.69429124,2458.8,2458.7,10.740443]
[1730714376464,2.69429124,2458.8,2458.7,5.59758323]
[1730714376666,6.76149124,2458.8,2458.7,5.73400168]
[1730714376864,6.76149124,2458.8,2458.7,1.37048438]
[1730714377061,7.24059124,2458.8,2458.7,1.37048438]
[1730714377369,7.24059124,2458.8,2458.7,0.30222959]
[1730714377869,0.40704,2458.6,2458.5,2.53411112]
[1730714378068,0.40704,2458.6,2458.5,4.03652782]
[1730714378368,4.47424,2458.6,2458.5,4.03652782]
[1730714378572,4.47424,2458.6,2458.5,2.53411112]
[1730714381175,4.47424,2458.6,2458.5,1.46585633]
[1730714381363,4.47424,2458.6,2458.5,2.53411112]
[1730714381567,4.47424,2458.6,2458.5,1.46585633]
[1730714387478,5.49107885,2458.6,2458.5,1.46585633]
[1730714388981,5.49107885,2458.6,2458.5,2.03900878]
[1730714390477,1.42387885,2458.6,2458.5,2.03900878]
[1730714390679,5.49107885,2458.6,2458.5,2.03900878]
[1730714391688,1.42387885,2458.6,2458.5,2.03900878]
[1730714391897,5.49107885,2458.6,2458.5,2.03889623]
[1730714393777,1.42387885,2458.6,2458.5,2.03889623]
[1730714394184,5.49107885,2458.6,2458.5,2.03889623]
[1730714394488,5.49107885,2458.6,2458.5,2.44594623]
[1730714394788,5.49107885,2458.6,2458.5,2.03889623]
[1730714394982,1.42387885,2458.6,2458.5,2.03889623]
[1730714395379,5.49107885,2458.6,2458.5,2.03889623]
[1730714395585,1.42387885,2458.6,2458.5,1.46585633]
[1730714395788,5.49107885,2458.6,2458.5,2.03880478]
[1730714396680,5.49107885,2458.6,2458.5,1.46585633]
[1730714396880,5.49107885,2458.6,2458.5,2.03879339]
[1730714397182,5.49107885,2458.6,2458.5,1.46585633]
[1730714397688,5.49107885,2458.6,2458.5,2.03878646]
[1730714398291,5.49107885,2458.6,2458.5,2.03877922]
[1730714398792,5.49107885,2458.6,2458.5,1.46585633]
[1730714399590,1.42387885,2458.6,2458.5,1.46585633]
[1730714399784,1.42387885,2458.6,2458.5,2.55557054]
[1730714399986,1.42387885,2458.6,2458.5,1.98265633]
[1730714402089,1.42387885,2458.6,2458.5,2.55557964]
[1730714402282,1.42387885,2458.6,2458.5,2.55558889]
[1730714402482,1.42387885,2458.6,2458.5,1.98265633]
[1730714402890,1.42387885,2458.6,2458.5,0.5168]
[1730714403395,5.08403885,2458.6,2458.4,0.4966]
[1730714403594,5.08403885,2458.6,2458.3,1.46585633]
[1730714403890,5.08403885,2458.6,2458.0,1.06825479]
[1730714403891,4.67365633,2458.4,2458.0,1.06825479]
[1730714404085,4.67365633,2458.4,2457.9,1.06825479]
[1730714404086,0.40713,2458.0,2457.9,1.06825479]
[1730714404288,0.40713,2458.0,2457.9,2.52713505]
[1730714404492,1.01782,2458.1,2457.9,2.52713505]
[1730714404684,0.35093,2458.0,2457.9,1.95305633]
[1730714404991,0.86925,2458.1,2457.9,2.52702401]
[1730714405196,0.86925,2458.1,2457.9,1.95305633]
[1730714405491,0.40713,2458.0,2457.9,2.36020633]
[1730714405809,0.40713,2458.1,2458.0,0.40713]
[1730714405987,0.40713,2458.1,2458.0,2.44685656]
[1730714406294,0.40713,2458.1,2458.0,2.44682689]
[1730714406889,0.40711,2458.2,2458.1,0.40711]
[1730714407085,0.4071,2458.2,2458.1,1.97865056]
[1730714407283,0.4071,2458.2,2458.1,1.57154056]
[1730714409006,0.4071,2458.2,2458.1,1.97866056]
[1730714409594,0.4071,2458.2,2458.1,1.40482]
[1730714409794,0.4071,2458.2,2458.1,1.97862718]
[1730714410403,0.4071,2458.2,2458.1,1.57150718]
[1730714410696,0.4071,2458.2,2457.9,1.06825479]
[1730714410697,5.53385633,2458.2,2457.9,1.06825479]
[1730714410888,5.53385633,2458.2,2457.8,6.91024525]
[1730714410889,0.40715,2457.9,2457.8,0.63431414]
[1730714411302,4.47595,2457.9,2457.8,0.63431414]
[1730714411503,0.4072,2457.6,2457.5,5.63335633]
[1730714411698,0.4072,2457.6,2457.5,5.7336407]
[1730714411999,9.76048633,2457.6,2457.2,3.00761112]
[1730714412194,9.76048633,2457.6,2457.3,0.5738088]
[1730714412195,0.40723,2457.4,2457.3,0.5738088]
[1730714412391,0.40725,2457.3,2457.2,1.93935633]
[1730714412591,0.40725,2457.3,2457.2,2.51293094]
[1730714413189,0.40725,2457.3,2457.2,1.93935633]
[1730714413396,0.40725,2457.3,2457.2,2.51293401]
[1730714413699,0.40725,2457.3,2457.2,1.93935633]
[1730714416699,0.40725,2457.3,2457.2,1.46585633]
[1730714417001,1.01807,2457.5,2457.1,0.506]
[1730714417002,0.40727,2457.2,2457.1,0.506]
[1730714417203,0.90617,2457.2,2457.1,0.506]
[1730714420502,0.90617,2457.2,2457.1,1.0194]
[1730714423200,0.90617,2457.2,2457.1,0.5134]
[1730714423403,4.97577,2457.2,2457.1,0.5134]
[1730714425005,8.18357,2457.2,2457.1,0.5134]
[1730714428315,0.4073,2457.0,2456.9,1.46585633]
[1730714428605,0.4073,2457.0,2456.9,1.95035633]
[1730714431812,0.0218,2457.6,2456.9,1.95035633]
[1730714431813,3.2078,2457.6,2456.9,1.95035633]
[1730714432104,0.8985,2457.6,2457.5,1.46585633]
[1730714435113,0.40723,2457.4,2457.3,1.94655633]
[1730714435704,0.40723,2457.4,2457.3,2.35380633]
[1730714436204,0.40723,2457.4,2457.3,1.94655633]
[1730714436913,4.47683,2457.4,2457.3,0.4807]
[1730714437119,4.47683,2457.4,2457.0,1.46585633]
[1730714437120,0.40728,2457.1,2457.0,1.46585633]
[1730714437301,0.4073,2457.0,2456.9,1.96685633]
[1730714437506,0.4073,2457.0,2456.9,2.47695633]
[1730714437908,0.4073,2457.0,2456.9,0.5101]
[1730714438713,0.40733,2456.8,2456.7,1.46585633]
[1730714439215,1.01828,2457.0,2456.7,1.46585633]
[1730714439409,0.40733,2456.8,2456.7,1.46585633]
[1730714441417,0.40735,2456.7,2456.6,0.4929]
[1730714450411,0.40735,2456.7,2456.6,1.06508683]
[1730714450827,0.40735,2456.7,2456.6,0.4929]
[1730714454420,0.40735,2456.7,2456.6,1.06578461]
[1730714455621,0.40735,2456.7,2456.6,2.1340394]
[1730714455826,0.40735,2456.7,2456.6,1.06578461]
[1730714456420,0.40735,2456.7,2456.6,1.98349686]
[1730714456619,0.40735,2456.7,2456.6,4.56845701]
[1730714456829,0.40735,2456.7,2456.6,1.06578461]
[1730714457129,0.92325,2456.7,2456.6,1.06578461]
[1730714457626,0.40735,2456.7,2456.6,2.1340394]
[1730714458920,0.5308,2456.8,2456.6,3.05275359]
[1730714459116,4.22603,2457.1,2456.7,0.98103609]
[1730714459117,0.40732,2456.9,2456.7,0.98103609]
[1730714459328,0.40732,2456.9,2456.8,1.06869609]
[1730714459931,0.40732,2456.9,2456.8,1.47602609]
[1730714460526,0.40732,2456.9,2456.8,1.06869609]
[1730714461521,0.40732,2456.9,2456.8,0.57369609]
[1730714461834,2.39826337,2456.9,2456.8,0.57369609]
[1730714462132,0.93112,2456.9,2456.8,0.57369609]
[1730714462434,1.46714337,2457.0,2456.6,1.96851479]
[1730714462630,0.40735,2456.7,2456.6,1.96851479]
[1730714462930,2.48544337,2457.0,2456.6,1.56115479]
[1730714463135,0.40735,2456.7,2456.6,1.96851479]
[1730714463429,3.7344,2457.1,2456.6,1.56115479]
[1730714463430,0.5266,2457.1,2456.6,1.56115479]
[1730714463628,0.40732,2456.9,2456.8,1.87446337]
[1730714463833,0.40732,2456.9,2456.8,2.44829287]
[1730714464231,0.40732,2456.9,2456.8,1.87446337]
[1730714464431,0.40732,2456.9,2456.8,1.87447337]
[1730714464630,0.40732,2456.9,2456.8,2.94272816]
[1730714465846,0.40732,2456.9,2456.8,2.53539816]
[1730714466834,0.40732,2456.9,2456.8,3.10930478]
[1730714467234,0.40732,2456.9,2456.8,4.02754846]
[1730714467936,0.40732,2456.9,2456.8,4.02763064]
[1730714469443,0.40732,2456.9,2456.8,5.54538826]
[1730714469947,0.40732,2456.9,2456.8,4.02763064]
[1730714470444,0.40732,2456.9,2456.8,5.54541077]
[1730714470644,0.40732,2456.9,2456.8,4.02763064]
[1730714472940,0.40732,2456.9,2456.8,5.54539695]
[1730714473143,2.03546539,2457.4,2456.9,0.4073]
[1730714473442,0.4073,2457.1,2457.0,6.54531933]
[1730714473645,0.4073,2457.1,2457.0,5.07816288]
[1730714473941,0.4073,2457.1,2457.0,3.56053157]
[1730714478250,0.4073,2457.1,2457.0,3.56041462]
[1730714478446,1.87444337,2457.1,2457.0,3.06921462]
[1730714478641,9.15184337,2457.1,2457.0,0.57389059]
[1730714478846,0.40733,2456.8,2456.7,1.06719909]
[1730714479052,0.40733,2456.8,2456.7,0.57400753]
[1730714479546,0.40733,2456.8,2456.7,4.07787214]
[1730714480146,0.40733,2456.8,2456.7,3.01067305]
[1730714480344,0.40733,2456.8,2456.7,4.07818012]
[1730714480547,0.40733,2456.8,2456.7,4.61147169]
[1730714481348,0.40733,2456.8,2456.7,5.76260645]
[1730714484043,0.40733,2456.8,2456.7,6.29300645]
[1730714486950,0.40733,2456.8,2456.7,4.69220781]
[1730714488559,0.40733,2456.8,2456.7,3.65076826]
[1730714488758,0.40733,2456.8,2456.7,6.29923015]
[1730714489660,0.40733,2456.8,2456.7,6.29924305]
[1730714491557,0.40733,2456.8,2456.7,6.30026259]
[1730714492350,0.40733,2456.8,2456.7,4.08430381]
[1730714492351,9.15267337,2456.8,2456.7,4.08430381]
[1730714492555,9.15267337,2456.8,2456.7,0.57575539]
[1730714493245,8.74534337,2456.8,2456.4,2.67054762]
[1730714493458,0.40738,2456.5,2456.4,1.06824981]
[1730714493662,0.40738,2456.5,2456.4,2.56511971]
[1730714493961,0.5405,2456.6,2456.4,2.56511971]
[1730714494150,0.40738,2456.5,2456.4,1.06824981]
[1730714494350,0.40738,2456.5,2456.4,2.56484951]
[1730714494547,0.5405,2456.6,2456.4,2.56484951]
[1730714494759,0.40738,2456.5,2456.4,1.06824981]
[1730714495060,7.68638,2456.5,2456.4,2.56481465]
[1730714495759,7.68638,2456.5,2456.4,1.64385167]
[1730714495952,7.68638,2456.5,2456.4,0.57560186]
[1730714496956,4.47858,2456.5,2456.4,2.5644927]
[1730714497458,5.49628812,2456.5,2456.4,1.64385167]
[1730714497646,1.42508812,2456.5,2456.4,0.57560186]
[1730714498251,5.49628812,2456.5,2456.4,0.57560186]
[1730714498456,1.42508812,2456.5,2456.4,0.57560186]
[1730714498759,5.49628812,2456.5,2456.4,0.57560186]
[1730714499053,5.08890812,2456.5,2456.3,3.04369318]
[1730714499263,1.42508812,2456.5,2456.4,0.57527805]
[1730714499648,5.49628812,2456.5,2456.4,0.57527805]
[1730714500859,1.42508812,2456.5,2456.4,0.57527805]
[1730714501653,5.49628812,2456.5,2456.4,0.57527805]
[1730714502960,5.49628812,2456.5,2456.3,1.57654981]
[1730714502961,0.4074,2456.4,2456.3,1.57654981]
[1730714503163,0.4074,2456.4,2456.3,2.15161417]
[1730714505258,0.4074,2456.4,2456.3,1.08336436]
[1730714506356,0.4074,2456.4,2456.3,0.5083]
[1730714506561,0.4074,2456.4,2456.3,1.08321647]
[1730714508860,0.4074,2456.4,2456.3,0.5083]
[1730714512073,1.01770812,2456.5,2456.4,0.4074]
[1730714512270,1.01770812,2456.5,2456.4,7.58873977]
[1730714512271,0.17140812,2456.5,2456.4,7.58873977]
[1730714512470,0.40736,2456.7,2456.5,0.40737]
[1730714512673,0.40736,2456.7,2456.6,3.14758996]
[1730714513267,0.40736,2456.7,2456.6,2.57284337]
[1730714513463,0.40734,2456.8,2456.6,3.55488944]
[1730714513667,0.40734,2456.8,2456.6,2.98020337]
[1730714513975,0.40734,2456.8,2456.7,0.57467819]
[1730714515576,0.40734,2456.8,2456.7,1.12537819]
[1730714516772,0.40734,2456.8,2456.7,0.5507]
[1730714517075,0.40734,2456.8,2456.7,1.12541634]
[1730714520284,0.40734,2456.8,2456.7,0.5507]
[1730714520669,0.40734,2456.8,2456.7,1.12553532]
[1730714521075,0.40734,2456.8,2456.7,3.00002869]
[1730714521881,1.53103,2457.1,2456.7,2.59267869]
[1730714522179,0.40735,2456.7,2456.6,4.68143435]
[1730714522371,0.40735,2456.7,2456.6,6.73875973]
[1730714523282,0.40735,2456.7,2456.6,8.25525626]
[1730714523484,0.40735,2456.7,2456.6,8.81295626]
[1730714524172,0.40735,2456.7,2456.6,7.74669191]
[1730714524378,0.40735,2456.7,2456.6,7.44669434]
[1730714524577,0.40735,2456.7,2456.6,8.40675547]
[1730714524876,0.40735,2456.7,2456.6,4.13189822]
[1730714525277,0.40735,2456.7,2456.6,8.94199603]
[1730714525682,0.40735,2456.7,2456.6,5.73419603]
[1730714526476,0.40735,2456.7,2456.6,9.34936603]
[1730714527086,0.40735,2456.7,2456.6,8.94199603]
[1730714527482,0.40735,2456.7,2456.6,5.73419603]
[1730714527683,0.40735,2456.7,2456.6,5.73441488]
[1730714527890,0.40735,2456.7,2456.6,8.94221638]
[1730714528177,0.40735,2456.7,2456.6,9.34957638]
[1730714528380,0.5294,2456.9,2456.6,10.81671975]
[1730714528580,5.69315337,2457.2,2456.6,10.81671975]
[1730714528581,3.61508,2457.2,2456.8,2.53422814]
[1730714528784,2.03545539,2457.4,2457.1,0.40728]
[1730714528785,1.01733539,2457.4,2457.1,0.40728]
[1730714528988,0.40725,2457.3,2457.2,1.61731603]
[1730714530182,0.40725,2457.3,2457.2,1.08811603]
[1730714530489,0.40728,2457.1,2457.0,1.57995424]
[1730714530787,0.40728,2457.1,2457.0,2.6678511]
[1730714532388,0.40728,2457.1,2457.0,1.60089686]
[1730714532795,0.40728,2457.1,2457.0,2.6678511]
[1730714533400,0.40728,2457.1,2457.0,1.60089686]
[1730714533583,1.01814,2457.3,2457.0,1.026]
[1730714533785,1.01814,2457.3,2457.0,1.6007126]
[1730714533985,0.40727,2457.2,2457.1,0.5747126]
[1730714536389,0.40728,2457.1,2457.0,1.4333]
[1730714536597,0.40728,2457.1,2457.0,1.60054661]
[1730714537396,0.40728,2457.1,2457.0,1.6005327]
[1730714538285,0.40728,2457.1,2457.0,0.5745327]
[1730714538486,0.40732,2456.9,2456.8,1.60125424]
[1730714538686,0.40732,2456.9,2456.8,1.10878047]
[1730714538993,0.22362,2456.9,2456.8,1.10878047]
[1730714539191,0.88972,2457.0,2456.8,1.10878047]
[1730714539397,0.56111,2457.0,2456.8,2.40877337]
[1730714539590,0.5368,2457.2,2456.9,0.57448231]
[1730714539789,0.4073,2457.1,2457.0,2.01264337]
[1730714539985,0.4073,2457.1,2457.0,2.41994337]
[1730714540197,0.4073,2457.1,2457.0,2.01264337]
[1730714540584,1.4247596,2457.1,2457.0,2.01264337]
[1730714541496,1.4247596,2457.1,2457.0,2.41994337]
[1730714542088,1.0174596,2457.1,2457.0,2.41994337]
[1730714542601,0.5174596,2457.1,2457.0,6.48954337]